bitfinex/quotes_ETHUSD_20240811
["timestamp","ask_amount","ask_price","bid_price","bid_amount"]
[1723366106006,2.59272,2699.9,2699.0,2.59346]
[1723366106235,4.8952,2700.0,2699.0,2.59346]
[1723366106441,2.59269,2699.9,2699.2,2.59333]
[1723366106657,2.59269,2699.9,2698.5,2.59403]
[1723366106658,2.59282,2699.8,2699.1,2.59345]
[1723366107004,2.59273,2699.9,2699.2,2.59334]
[1723366107213,2.3026,2700.0,2699.3,2.59325]
[1723366107417,2.59211,2700.5,2699.8,2.59277]
[1723366107614,2.2623,2700.5,2700.0,2.59258]
[1723366108031,2.2623,2700.5,2700.3,2.59229]
[1723366108234,2.2623,2700.5,2699.4,3.0]
[1723366108431,4.85396,2701.0,2700.2,2.5924]
[1723366108636,4.85396,2701.0,2700.3,0.07405486]
[1723366108637,2.59183,2700.8,2700.3,0.07405486]
[1723366108838,0.485413,2700.8,2699.4,2.59313]
[1723366109006,2.2623,2701.0,2699.2,2.26913452]
[1723366109007,2.5927,2699.9,2699.2,2.59327]
[1723366109209,2.2623,2700.1,2698.8,2.59365]
[1723366109210,2.59278,2699.8,2698.8,2.59365]
[1723366109454,2.2623,2700.1,2699.1,2.59338]
[1723366109752,2.59278,2699.8,2699.1,2.59338]
[1723366109952,2.59272,2699.9,2698.9,2.59364]
[1723366110264,2.48853,2700.1,2698.6,2.59384]
[1723366110427,2.59356,2699.0,2697.7,2.26913452]
[1723366110760,2.59413,2698.4,2697.6,2.59487]
[1723366110906,2.59413,2698.4,2697.7,2.59479]
[1723366111115,0.259356,2698.9,2697.3,2.59513]
[1723366111116,2.59459,2698.0,2697.3,2.59513]
[1723366111522,2.59434,2698.2,2697.3,2.59513]
[1723366112046,2.2623,2698.8,2698.1,2.5944]
[1723366112212,2.2623,2698.8,2698.3,2.59413]
[1723366112423,4.85604,2698.8,2697.8,2.59464]
[1723366112614,4.85604,2698.8,2697.9,2.59459]
[1723366112615,5.341734,2698.8,2697.9,2.59459]
[1723366112810,2.59394,2698.6,2697.6,2.59486]
[1723366113010,2.2623,2698.8,2698.1,2.59433]
[1723366113255,2.2623,2698.8,2698.2,0.07410584]
[1723366113412,2.2623,2698.8,2698.5,2.59402]
[1723366113615,2.2623,2698.8,2698.3,2.59415]
[1723366113857,2.2623,2698.8,2698.2,2.59431]
[1723366114159,2.2623,2698.8,2698.2,2.59432]
[1723366114523,4.85604,2698.8,2698.0,2.5945]
[1723366114723,4.85604,2698.8,2697.9,2.5946]
[1723366114931,4.85604,2698.8,2697.2,5.59519]
[1723366114932,2.59415,2698.4,2697.2,5.59519]
[1723366115262,2.59415,2698.4,2697.7,2.59479]
[1723366115415,2.5939,2698.7,2698.0,2.5945]
[1723366115611,2.59414,2698.4,2697.4,2.59508]
[1723366115851,2.59414,2698.4,2697.6,2.59489]
[1723366116360,2.59392,2698.7,2697.6,2.59489]
[1723366116361,2.59392,2698.7,2697.9,2.5946]
[1723366116543,3.079542,2698.7,2697.9,2.5946]
[1723366116950,2.59434,2698.2,2697.7,0.07412094]
[1723366117257,2.59414,2698.4,2697.7,2.66891094]
[1723366117417,2.59414,2698.4,2697.8,2.66879444]
[1723366117617,2.59422,2698.3,2697.8,0.07412444]
[1723366117824,2.2623,2698.8,2697.8,0.07412444]
[1723366118065,2.2623,2698.8,2698.2,2.59423]
[1723366118366,2.2623,2698.8,2698.4,2.59406]
[1723366118961,0.269313,2699.4,2698.4,2.59406]
[1723366118962,2.2623,2699.5,2698.8,2.59367]
[1723366119120,2.2623,2699.5,2699.2,2.59333]
[1723366119316,2.2623,2699.5,2698.9,2.59362]
[1723366119518,4.85543,2699.5,2698.6,2.5939]
[1723366119762,2.2623,2699.5,2698.8,2.59368]
[1723366120063,2.2623,2699.5,2699.0,2.59353]
[1723366120215,2.2623,2699.5,2699.1,2.59345]
[1723366121553,2.2623,2699.5,2698.9,2.59364]
[1723366122056,4.85537,2699.5,2698.9,2.59364]
[1723366122633,2.2623,2699.5,2699.0,2.59353]
[1723366122832,2.2623,2699.5,2698.9,2.59357]
[1723366123032,2.2623,2699.5,2699.0,2.59354]
[1723366123274,2.59272,2699.9,2699.1,2.59344]
[1723366123577,2.2623,2700.0,2699.5,2.593]
[1723366124013,2.2623,2700.0,2699.3,2.59322]
[1723366124014,2.2623,2700.0,2699.4,2.59315]
[1723366124218,2.2623,2700.0,2699.1,2.59342]
[1723366124219,3.00702,2700.0,2699.1,2.59342]
[1723366124459,2.59288,2699.7,2699.1,2.59342]
[1723366124950,2.59303,2699.6,2698.8,2.5937]
[1723366125133,2.59321,2699.4,2698.8,2.59374]
[1723366125978,2.59321,2699.4,2697.8,2.59468]
[1723366125979,2.59354,2699.1,2698.3,2.5942]
[1723366126346,2.59354,2699.1,2698.1,2.59435]
[1723366126347,2.59372,2698.9,2698.1,2.59435]
[1723366126528,2.4108,2699.0,2698.1,2.59435]
[1723366126529,5.00435,2699.0,2698.3,2.59418]
[1723366126728,3.170589,2699.0,2698.1,2.59438]
[1723366126952,2.59392,2698.7,2697.9,2.59457]
[1723366127272,2.59368,2698.9,2698.1,2.59435]
[1723366127483,0.259368,2698.8,2698.2,2.59431]
[1723366127647,2.59336,2699.2,2698.5,2.59395]
[1723366127845,2.59333,2699.3,2698.4,2.59409]
[1723366128047,2.59346,2699.1,2698.4,2.59409]
[1723366128362,2.59333,2699.3,2698.6,2.59391]
[1723366128363,2.5933,2699.3,2698.6,2.59391]
[1723366128679,2.59348,2699.1,2698.2,2.59428]
[1723366128878,2.59348,2699.1,2698.5,2.59396]
[1723366129250,5.4108,2699.5,2698.8,2.59374]
[1723366129251,8.00391,2699.5,2698.8,2.59374]
[1723366129433,0.773113,2699.4,2698.7,2.59377]
[1723366129743,2.59328,2699.3,2698.7,2.59377]
[1723366129989,2.59328,2699.3,2698.5,2.59397]
[1723366130273,2.59328,2699.3,2697.5,3.0]
[1723366130274,2.59392,2698.7,2697.9,2.59458]
[1723366130431,2.59392,2698.7,2697.7,2.59473]
[1723366130432,2.59403,2698.5,2697.7,2.59473]
[1723366130639,2.59413,2698.4,2697.5,2.5949]
[1723366131075,2.4108,2698.6,2697.5,2.5949]
[1723366131076,2.59438,2698.2,2697.5,2.5949]
[1723366131288,2.59451,2698.0,2697.3,2.59515]
[1723366131497,0.24108,2698.5,2697.5,2.5949]
[1723366131498,2.59423,2698.3,2697.5,2.5949]
[1723366131644,2.59414,2698.4,2697.7,2.59473]
[1723366131849,2.59414,2698.4,2697.6,0.07412467]
[1723366131850,2.4108,2698.6,2698.1,2.59435]
[1723366132168,2.4108,2698.6,2698.1,2.59433]
[1723366132744,2.4108,2698.6,2698.1,2.66844293]
[1723366132975,2.4108,2698.6,2698.1,5.18867]
[1723366133180,2.4108,2698.6,2698.3,2.59422]
[1723366133381,2.4108,2698.6,2698.2,2.66841266]
[1723366133579,5.00438,2699.0,2698.3,2.59419]
[1723366133784,2.59369,2698.9,2698.3,2.59419]
[1723366133957,2.670158,2699.0,2698.4,2.59411]
[1723366134162,5.263708,2699.0,2698.4,2.59412]
[1723366134358,2.670158,2699.0,2698.4,2.59412]
[1723366134702,2.670158,2699.0,2698.3,2.59419]
[1723366134703,2.4108,2699.5,2699.2,2.59334]
[1723366134989,0.01342767,2700.8,2699.0,2.59351]
[1723366134990,2.4108,2700.3,2699.0,2.59351]
[1723366135298,2.59284,2699.8,2699.0,2.59351]
[1723366135584,2.59261,2700.0,2699.2,2.59333]
[1723366135785,2.5927,2699.9,2699.3,2.66732749]
[1723366136088,2.5927,2699.9,2699.3,0.07407982]
[1723366136262,2.59279,2699.8,2699.2,2.59327]
[1723366136994,2.59303,2699.6,2699.0,2.59352]
[1723366137207,2.59303,2699.6,2698.4,7.96791]
[1723366137208,2.59303,2699.6,2698.9,2.59363]
[1723366137686,2.59303,2699.6,2698.0,2.3738]
[1723366137687,2.59344,2699.2,2698.5,2.59398]
[1723366137877,2.59347,2699.1,2698.5,2.59398]
[1723366138048,2.59347,2699.1,2698.3,2.5942]
[1723366138049,2.59347,2699.1,2698.4,2.59409]
[1723366138253,2.59347,2699.1,2698.3,2.59416]
[1723366138534,2.59374,2698.8,2698.1,2.59439]
[1723366138705,2.4108,2698.7,2697.9,2.59454]
[1723366138994,2.4108,2698.7,2698.0,2.59444]
[1723366139195,2.4108,2698.7,2697.9,2.59459]
[1723366139361,2.4108,2698.7,2697.6,2.59487]
[1723366139362,2.59403,2698.5,2697.6,2.59487]
[1723366139764,2.59413,2698.4,2697.6,2.59487]
[1723366140095,2.59401,2698.6,2697.9,2.59459]
[1723366140388,2.5942,2698.4,2697.8,2.59469]
[1723366140608,2.5944,2698.2,2697.5,2.59495]
[1723366140768,2.3541,2698.1,2697.3,2.59515]
[1723366141094,4.94853,2698.1,2697.5,2.5949]
[1723366141395,4.94853,2698.1,2697.2,2.59526]
[1723366141396,2.5947,2697.9,2697.2,2.59526]
[1723366141596,2.59452,2698.0,2697.1,2.59535]
[1723366141597,2.59471,2697.8,2697.1,2.59535]
[1723366142368,2.59471,2697.8,2696.9,2.59553]
[1723366142505,2.59491,2697.6,2697.0,2.59545]
[1723366142829,2.59471,2697.8,2696.8,2.5956]
[1723366142830,2.59478,2697.8,2696.8,2.5956]
[1723366143032,2.854241,2697.8,2696.4,2.59603]
[1723366143341,2.854241,2697.8,2697.0,2.59539]
[1723366143342,2.3541,2697.7,2697.0,2.59539]
[1723366143543,2.3541,2697.7,2697.1,0.07414599]
[1723366144013,2.3541,2697.7,2697.2,2.59527]
[1723366144221,2.3541,2697.7,2697.0,2.59543]
[1723366144417,2.59494,2697.6,2696.9,2.59555]
[1723366144615,2.595,2697.5,2696.8,2.59565]
[1723366144835,2.59509,2697.4,2696.8,2.59565]
[1723366145442,0.518445,2697.5,2697.0,2.59546]
[1723366145628,2.59494,2697.6,2697.0,2.59546]
[1723366146362,2.58951,2697.7,2696.8,2.59565]
[1723366146363,5.18432,2697.7,2696.8,2.59565]
[1723366146563,2.595,2697.5,2696.8,2.59565]
[1723366147421,2.59509,2697.4,2696.8,2.59565]
[1723366147621,0.259509,2697.4,2696.9,2.59556]
[1723366147825,2.5949,2697.6,2696.9,2.59556]
[1723366148021,2.58951,2697.7,2697.1,2.59531]
[1723366148279,2.3541,2697.7,2697.1,2.59531]
[1723366148755,4.9489,2697.7,2697.1,2.59531]
[1723366148957,2.59491,2697.6,2696.9,2.59554]
[1723366149149,2.595,2697.5,2696.9,2.59554]
[1723366149355,2.59491,2697.6,2696.9,2.59554]
[1723366149871,2.59502,2697.5,2696.9,2.59554]
[1723366150221,2.59517,2697.4,2696.7,2.59573]
[1723366150420,2.59491,2697.6,2696.7,2.59573]
[1723366150421,2.59519,2697.3,2696.7,2.59573]
[1723366150966,2.59517,2697.4,2696.7,2.59573]
[1723366151176,0.3090071,2697.4,2696.7,2.59567]
[1723366151329,0.3090071,2697.4,2696.8,2.59559]
[1723366151531,0.3090071,2697.4,2696.5,2.59592]
[1723366151532,2.59548,2697.0,2695.8,10.35]
[1723366151732,2.59526,2697.3,2696.6,2.59583]
[1723366151946,2.3541,2697.4,2696.6,2.59583]
[1723366152160,2.59534,2697.2,2696.4,2.59598]
[1723366152434,2.59538,2697.1,2696.4,2.59598]
[1723366152665,2.5955,2697.0,2696.4,2.59598]
[1723366152844,2.3541,2696.9,2696.2,2.59621]
[1723366153145,3.0,2697.5,2696.9,2.5955]
[1723366153146,2.3541,2697.5,2696.9,2.5955]
[1723366153569,4.9491,2697.5,2696.9,2.5955]
[1723366153748,2.59519,2697.3,2696.7,2.59573]
[1723366154048,2.59519,2697.3,2695.9,2.43]
[1723366154049,2.59522,2697.3,2696.3,2.59606]
[1723366154967,0.49491,2697.4,2696.3,2.59606]
[1723366154968,2.59545,2697.1,2696.3,2.59606]
[1723366155276,0.49491,2697.4,2696.1,2.59628]
[1723366155277,0.284901,2697.3,2696.1,2.59628]
[1723366155579,2.59566,2696.9,2696.3,2.59612]
[1723366155876,2.59541,2697.1,2696.5,2.59589]
[1723366156060,2.59541,2697.1,2696.3,5.1922]
[1723366156061,5.19088,2697.1,2696.3,5.1922]
[1723366156264,2.59554,2697.0,2696.3,2.59608]
[1723366156466,2.3541,2696.9,2696.2,2.59621]
[1723366156675,2.3541,2696.9,2696.5,2.5959]
[1723366157340,2.3541,2696.9,2696.3,2.59608]
[1723366157668,2.3541,2696.9,2696.2,2.59617]
[1723366158182,2.3541,2696.9,2696.3,2.59608]
[1723366158583,2.3541,2696.9,2695.9,2.67069338]
[1723366158584,2.59596,2696.5,2695.9,2.67069338]
[1723366158784,2.59596,2696.5,2695.9,2.59653]
[1723366159658,2.849064,2696.9,2695.9,2.59647]
[1723366159659,2.59568,2696.8,2695.9,2.59647]
[1723366159854,2.59568,2696.8,2696.2,2.59624]
[1723366160055,4.94969,2696.9,2695.8,2.59654]
[1723366160056,2.59599,2696.5,2695.8,2.59654]
[1723366160267,2.59577,2696.7,2696.0,2.59643]
[1723366160670,2.59577,2696.7,2696.0,5.1928]
[1723366160981,3.350317,2696.7,2695.9,2.59647]
[1723366161192,2.59611,2696.4,2695.7,2.59666]
[1723366161357,2.59607,2696.4,2695.7,2.59666]
[1723366161549,2.59615,2696.3,2695.5,2.59688]
[1723366161752,2.3541,2696.9,2695.6,0.07418303]
[1723366161753,2.3541,2696.2,2695.6,0.07418303]
[1723366161970,2.3541,2696.2,2695.8,2.59654]
[1723366162189,2.3541,2696.2,2695.8,5.19309]
[1723366162390,2.3541,2696.2,2695.8,2.59654]
[1723366162952,2.3541,2696.2,2695.1,2.59726]
[1723366163165,2.3541,2696.2,2695.9,2.59649]
[1723366163674,2.3541,2696.2,2695.7,2.59668]
[1723366164076,2.3541,2696.2,2695.8,0.0741809]
[1723366164280,2.3541,2696.7,2696.3,2.59614]
[1723366164856,2.3541,2696.7,2696.1,2.59627]
[1723366165257,2.59598,2696.5,2695.9,2.59648]
[1723366165486,2.59606,2696.4,2695.7,5.19334]
[1723366165685,2.59606,2696.4,2695.8,2.59662]
[1723366165885,2.59606,2696.4,2695.7,2.59666]
[1723366166084,2.59606,2696.4,2695.8,2.59662]
[1723366166297,2.59606,2696.4,2695.9,2.59653]
[1723366166611,4.94987,2696.7,2696.1,2.59628]
[1723366166768,4.94987,2696.7,2696.0,2.59637]
[1723366166960,0.494987,2696.6,2696.0,2.59637]
[1723366167154,3.090927,2696.6,2696.0,2.59637]
[1723366167559,0.494987,2696.6,2695.6,0.07417245]
[1723366167796,2.3541,2696.7,2695.6,2.59676]
[1723366167982,2.59596,2696.5,2695.9,2.59653]
[1723366168185,2.59586,2696.6,2696.0,2.59643]
[1723366168782,2.3541,2696.7,2696.0,2.59636]
[1723366168986,2.3541,2696.7,2694.8,7.50142497]
[1723366168987,2.59645,2696.0,2694.8,7.50142497]
[1723366169187,2.3603,2695.9,2695.5,2.5969]
[1723366169518,2.3603,2695.9,2694.8,0.15142497]
[1723366169519,2.3603,2695.9,2695.3,2.59707]
[1723366169684,2.3603,2695.9,2695.2,2.59717]
[1723366169872,2.59663,2695.8,2695.2,2.59717]
[1723366170071,3.352006,2695.8,2694.9,2.59745]
[1723366170266,2.59676,2695.7,2694.8,0.15142497]
[1723366170671,2.3603,2695.9,2695.3,2.59702]
[1723366170986,2.3603,2696.3,2695.0,4.86305]
[1723366171306,2.3603,2696.3,2696.0,2.59643]
[1723366171507,2.3603,2696.3,2695.8,2.59656]
[1723366171722,2.3603,2696.3,2695.4,2.59695]
[1723366171723,2.3603,2696.7,2696.2,2.59619]
[1723366171868,2.3603,2696.7,2696.3,2.59608]
[1723366172071,2.3603,2696.7,2696.2,2.59619]
[1723366172798,2.3603,2696.7,2694.8,9.87496497]
[1723366172799,2.59602,2696.5,2695.8,2.59656]
[1723366172970,2.59605,2696.4,2695.7,2.59665]
[1723366173168,2.59594,2696.6,2695.9,2.59653]
[1723366173169,2.59587,2696.6,2695.9,2.59653]
[1723366173405,2.3603,2696.7,2696.1,2.59627]
[1723366173580,2.3603,2696.7,2695.0,2.2657]
[1723366173581,2.59592,2696.6,2695.8,2.59661]
[1723366173782,2.5963,2696.2,2695.5,2.59687]
[1723366173996,2.3603,2696.7,2695.7,2.59671]
[1723366173997,2.59622,2696.3,2695.7,2.59671]
[1723366174180,2.83189,2696.6,2695.4,2.59694]
[1723366174392,0.259633,2696.5,2695.4,2.59694]
[1723366174591,2.59631,2696.2,2695.5,2.59684]
[1723366174794,4.95661,2696.2,2695.6,2.59681]
[1723366174993,4.95661,2696.2,2695.6,5.19355]
[1723366175186,2.3603,2697.2,2695.7,2.2657]
[1723366175385,2.3603,2697.2,2696.7,2.59569]
[1723366175582,2.855849,2697.2,2696.8,2.669736]
[1723366175795,2.3603,2697.2,2697.0,2.5954]
[1723366175986,2.5949,2697.6,2696.9,5.19106]
[1723366175987,4.9552,2697.6,2696.9,5.19106]
[1723366176197,0.25949,2697.5,2697.0,2.5954]
[1723366177122,2.3603,2697.6,2697.0,0.07414942]
[1723366177419,2.3603,2697.6,2696.8,2.5956]
[1723366177586,2.3603,2697.6,2696.7,2.59573]
[1723366177587,2.59516,2697.4,2696.7,2.59573]
[1723366177920,2.59516,2697.4,2696.5,2.59588]
[1723366178223,2.59521,2697.3,2696.7,2.59574]
[1723366178525,2.59633,2697.6,2696.5,2.59588]
[1723366178526,2.59516,2697.4,2696.5,2.59588]
[1723366178698,2.59518,2697.3,2696.5,2.59588]
[1723366178897,2.59534,2697.2,2696.5,2.59588]
[1723366179196,2.854663,2697.5,2696.7,2.59576]
[1723366179526,2.5954,2697.1,2696.3,2.5961]
[1723366179694,2.3603,2697.0,2696.3,2.5961]
[1723366179883,2.85587,2697.0,2696.3,2.5961]
[1723366180309,2.59565,2696.9,2696.2,2.59622]
[1723366180521,2.59568,2696.8,2695.9,2.5965]
[1723366180823,2.59568,2696.8,2695.8,2.59661]
[1723366180824,2.59602,2696.5,2695.8,2.59661]
[1723366181121,2.59605,2696.4,2695.7,2.59669]
[1723366181429,2.3142,2696.3,2695.5,2.59688]
[1723366181717,2.5964,2696.1,2695.4,2.59701]
[1723366181930,2.3142,2696.3,2695.6,2.59682]
[1723366181931,0.23142,2696.2,2695.6,2.59682]
[1723366182096,4.91039,2696.3,2695.7,2.59672]
[1723366182295,2.3142,2696.3,2695.9,2.5965]
[1723366182486,2.3142,2696.3,2695.7,2.59669]
[1723366182487,4.91035,2696.3,2695.7,2.59669]
[1723366182695,2.59625,2696.2,2695.5,2.59688]
[1723366183022,2.59634,2696.1,2695.4,2.59692]
[1723366183207,5.401385,2696.3,2695.6,2.59681]
[1723366183381,2.59641,2696.1,2695.3,2.5971]
[1723366183919,5.19284,2696.1,2695.4,2.597]
[1723366184098,5.9926475,2696.1,2695.4,2.597]
[1723366184298,3.3962175,2696.1,2695.4,2.597]
[1723366184503,3.3962175,2696.1,2695.5,2.59691]
[1723366185310,3.3962175,2696.1,2695.3,2.5971]
[1723366185311,3.3962175,2696.1,2695.4,2.597]
[1723366185504,3.3962175,2696.1,2695.3,2.5971]
[1723366187128,3.3962175,2696.1,2695.5,2.59691]
[1723366188097,2.59643,2696.0,2695.3,5.19413]
[1723366188291,2.59684,2695.6,2694.9,2.59748]
[1723366188509,2.59684,2695.6,2695.0,2.59739]
[1723366189131,2.59702,2695.4,2694.8,2.74898497]
[1723366189293,2.59702,2695.4,2694.8,2.59756]
[1723366190304,4.91142,2695.2,2694.6,2.59776]
[1723366190507,5.4322,2695.2,2694.2,2.5981]
[1723366190696,5.4322,2695.2,2694.1,2.59824]
[1723366190697,2.59767,2694.8,2694.1,2.59824]
[1723366190898,2.59741,2695.0,2694.2,2.59815]
[1723366191229,2.59754,2694.9,2694.2,2.59815]
[1723366191818,2.59741,2695.0,2694.2,2.59815]
[1723366192028,3.454693,2695.0,2694.2,2.59815]
[1723366192229,2.59779,2694.6,2693.9,2.59844]
[1723366192434,2.3142,2694.5,2693.9,2.59844]
[1723366192637,2.3142,2694.5,2693.8,2.59855]
[1723366192932,2.3142,2694.5,2694.1,2.59823]
[1723366193311,2.3142,2694.5,2694.2,2.59813]
[1723366193933,2.3142,2694.5,2694.0,2.5983]
[1723366194296,4.91209,2694.5,2693.9,2.59845]
[1723366195602,3.0,2695.4,2693.2,3.0]
[1723366195603,2.3142,2695.0,2694.6,2.59777]
[1723366195800,2.3142,2695.0,2694.3,2.598]
[1723366196028,2.3142,2695.0,2694.7,2.59762]
[1723366196237,2.3142,2695.0,2694.8,2.59759]
[1723366196450,2.3142,2695.0,2694.1,0.07421292]
[1723366196636,4.91091,2695.8,2694.6,2.59771]
[1723366196943,2.69922648,2695.8,2694.7,0.07420582]
[1723366197235,2.3142,2695.8,2695.2,2.59714]
[1723366197445,2.3142,2695.8,2695.3,2.5971]
[1723366197807,2.3142,2695.8,2695.2,2.59714]
[1723366198043,2.3142,2696.4,2695.1,0.07419788]
[1723366198201,2.3142,2696.4,2695.9,2.59653]
[1723366198543,5.84647,2697.1,2695.9,2.59653]
[1723366198544,2.3142,2696.9,2696.4,2.59603]
[1723366198898,2.3142,2696.9,2696.3,2.59613]
[1723366199104,2.3142,2696.9,2696.4,2.59605]
[1723366199630,2.3142,2696.9,2695.8,2.59656]
[1723366199836,2.3142,2696.9,2696.3,2.59608]
[1723366200136,2.3142,2696.9,2695.8,2.59658]
[1723366200305,2.3142,2696.9,2696.3,2.59608]
[1723366200512,2.282,2697.3,2696.4,0.0741646]
[1723366200712,2.282,2697.7,2696.4,2.59599]
[1723366200898,2.282,2697.7,2696.7,2.59567]
[1723366201106,2.282,2697.7,2697.4,2.59502]
[1723366201414,2.282,2697.7,2697.3,2.59511]
[1723366201620,2.282,2697.7,2696.5,2.59589]
[1723366201818,2.282,2697.7,2697.0,2.59542]
[1723366202032,2.282,2697.7,2696.8,2.59566]
[1723366202033,2.59502,2697.5,2696.8,2.59566]
[1723366202240,0.2282,2697.6,2696.1,3.0]
[1723366202558,2.282,2697.7,2697.3,2.59511]
[1723366202708,2.282,2697.7,2696.2,0.62415059]
[1723366202709,2.282,2697.7,2697.6,2.59489]
[1723366203046,2.282,2697.7,2697.1,2.59533]
[1723366203247,2.282,2697.7,2696.5,2.59595]
[1723366203248,2.282,2697.7,2697.2,2.59528]
[1723366203552,2.282,2697.7,2697.4,2.59502]
[1723366203854,2.282,2698.2,2697.5,0.07413683]
[1723366204002,2.282,2698.2,2697.7,2.59479]
[1723366204368,3.256,2698.9,2698.0,2.5945]
[1723366204369,2.282,2698.8,2698.0,2.5945]
[1723366204505,2.282,2698.8,2698.4,2.5941]
[1723366204856,0.005,2698.9,2698.2,2.59429]
[1723366204857,2.59866,2698.9,2698.2,2.59429]
[1723366205153,2.59866,2698.9,2696.9,2.3132]
[1723366205154,2.59444,2698.1,2696.9,2.3132]
[1723366205304,2.268,2698.4,2697.1,2.59534]
[1723366205305,2.59471,2697.8,2697.1,2.59534]
[1723366205662,2.59463,2697.9,2697.2,2.59525]
[1723366205943,2.59444,2698.1,2697.3,2.59509]
[1723366206123,2.268,2698.4,2696.8,2.59557]
[1723366206124,2.268,2698.4,2697.4,2.59507]
[1723366206307,2.268,2698.4,2696.8,2.3132]
[1723366206308,2.59441,2698.2,2697.3,2.59516]
[1723366206553,2.59458,2698.0,2697.0,2.59547]
[1723366206716,2.59461,2697.9,2697.2,2.5952]
[1723366207307,2.59453,2698.0,2697.3,2.59517]
[1723366207507,2.59462,2697.9,2697.1,2.59533]
[1723366207805,2.59452,2698.0,2696.9,2.59555]
[1723366208001,2.59452,2698.0,2697.2,2.59527]
[1723366208400,2.59452,2698.0,2697.0,2.59543]
[1723366208642,2.268,2697.7,2697.1,2.59535]
[1723366208815,2.268,2697.7,2696.4,4.90919]
[1723366208816,2.268,2697.7,2696.7,2.59572]
[1723366209006,2.5951,2697.4,2696.5,2.59587]
[1723366209208,2.5951,2697.4,2696.3,2.59612]
[1723366209209,2.59529,2697.2,2696.3,2.59612]
[1723366209418,0.2268,2697.6,2696.7,2.59573]
[1723366209635,4.86287,2697.7,2696.8,0.07415261]
[1723366209636,2.268,2697.7,2696.8,0.07415261]
[1723366209932,2.268,2697.7,2696.5,2.59588]
[1723366209933,2.59532,2697.2,2696.5,2.59588]
[1723366210133,2.268,2697.0,2696.4,2.59605]
[1723366210357,2.268,2697.0,2696.3,2.59614]
[1723366210358,4.86355,2697.0,2696.3,2.59614]
[1723366210686,5.6353902,2697.0,2696.1,2.59633]
[1723366210840,2.59576,2696.7,2695.9,2.59651]
[1723366211035,2.59557,2696.9,2696.0,2.59643]
[1723366211532,2.59557,2696.9,2696.2,2.59623]
[1723366211739,0.82308202,2696.9,2696.3,2.59614]
[1723366211954,4.86351,2697.0,2696.4,2.59604]
[1723366211955,2.268,2697.0,2696.4,2.59604]
[1723366212439,2.268,2697.0,2695.6,2.3132]
[1723366212440,2.268,2697.0,2696.7,2.59571]
[1723366212637,2.268,2697.0,2696.3,2.59611]
[1723366212969,2.268,2697.0,2695.2,2.59718]
[1723366212970,2.59569,2696.8,2695.9,2.59647]
[1723366213338,2.59569,2696.8,2696.1,2.59627]
[1723366214349,2.59593,2696.6,2695.9,2.59651]
[1723366214549,2.268,2696.4,2695.9,2.59651]
[1723366214773,2.268,2696.4,2695.7,2.59668]
[1723366214973,4.86406,2696.4,2695.7,2.59668]
[1723366215139,2.268,2696.4,2695.8,2.59659]
[1723366215338,2.268,2696.4,2695.9,2.59649]
[1723366215739,2.268,2696.4,2696.0,2.59643]
[1723366215978,2.268,2696.4,2695.9,2.59649]
[1723366216178,2.268,2696.4,2696.0,2.59642]
[1723366216678,2.268,2696.4,2695.3,2.59703]
[1723366216679,3.116,2696.3,2695.3,2.59703]
[1723366216847,2.59635,2696.1,2695.3,2.59703]
[1723366217068,2.4948,2696.4,2694.8,2.59753]
[1723366217069,2.268,2695.8,2694.8,2.59753]
[1723366217242,4.86464,2695.8,2694.8,2.59753]
[1723366217488,4.86464,2695.8,2695.1,2.59722]
[1723366217692,2.59673,2695.7,2695.1,2.59722]
[1723366218005,2.59673,2695.7,2695.0,2.59737]
[1723366218523,2.268,2695.8,2695.1,2.5973]
[1723366218694,2.268,2695.8,2695.0,0.07421024]
[1723366218695,2.268,2696.2,2695.7,2.59672]
[1723366219492,2.268,2696.2,2694.7,2.59766]
[1723366219695,2.5964,2696.1,2695.4,2.59695]
[1723366219955,3.39444,2696.1,2695.2,2.59717]
[1723366220105,2.59682,2695.6,2694.8,2.59754]
[1723366220288,2.5968,2695.7,2694.8,2.59754]
[1723366220493,2.59701,2695.4,2694.8,2.59754]
[1723366220734,2.4869,2695.2,2694.6,2.59775]
[1723366220933,2.4869,2695.2,2694.8,2.59752]
[1723366221259,2.4869,2695.2,2693.4,2.1611]
[1723366221260,2.4869,2695.7,2695.0,2.59732]
[1723366221447,2.4869,2695.7,2694.9,0.07420671]
[1723366221598,2.4869,2695.7,2694.9,2.59749]
[1723366221916,2.4869,2695.7,2695.1,2.59729]
[1723366221917,3.33801,2695.7,2695.1,2.59729]
[1723366222092,2.4869,2695.7,2695.2,2.59714]
[1723366222295,2.4869,2695.7,2695.1,2.59729]
[1723366222515,2.59685,2695.6,2694.9,2.59745]
[1723366222916,2.59718,2695.3,2694.6,2.59771]
[1723366223138,5.71292,2695.5,2694.6,2.59771]
[1723366223345,5.71292,2695.5,2694.9,2.59741]
[1723366223346,3.116,2695.5,2694.9,2.59741]
[1723366223529,5.9348,2695.7,2695.0,2.5974]
[1723366223725,0.59348,2695.6,2694.9,2.59741]
[1723366223969,0.59348,2695.6,2695.1,2.59729]
[1723366224115,3.33801,2695.7,2695.1,2.59729]
[1723366224964,2.4869,2695.7,2695.3,2.59702]
[1723366225180,2.4869,2695.7,2695.1,2.59728]
[1723366225359,2.4869,2695.7,2694.8,2.59758]
[1723366225360,2.59683,2695.6,2694.8,2.59758]